Workbook

Sheet Informe-4
A1: TELEFÓNICA DEL PERÚ S.A.A.-2016-4 RECONCILIACIÓN DEL ESTADO DE RESULTADOS ESTATUTARIO CON EL DE CONTABILIDAD SEPARADA-30052017
A3: INFORME 4: RECONCILIACIÓN DEL ESTADO DE RESULTADOS ESTATUTARIO CON EL DE CONTABILIDAD SEPARADA
A5: Periodo de reporte: Al 31 de Diciembre 2016
A7: Expresado en Miles Nuevos Soles | B7: Estado de Resultados Estatutario | C7: Ajustes | D7: Estado de Resultados de Contabilidad Separada | E7: Nota
A8: INGRESOS | B8: =SUM(B9:B19) -> 9221851.94 | C8: =SUM(C9:C19) -> 0 | D8: =+B8 -> 9221851.94
A9: Telefonía móvil | B9: 3463837.748 | C9: 0 | D9: =+B9 -> 3463837.748
A10: Internet | B10: 1376718.916 | C10: 0 | D10: 1376718.916
A11: Televisión pagada | B11: 860707.921 | C11: 0 | D11: =+B11 -> 860707.921
A12: Datos y tecnología de la información | B12: 735915.468 | C12: 0 | D12: 735915.468
A13: Telefonía local | B13: 580671.51 | C13: 0 | D13: 580671.51
A14: Mensaje de textos y datos | B14: 500466.83 | C14: 0 | D14: 500466.83
A15: Venta de Equipos Móviles | B15: 581321.0647 | C15: 0 | D15: 581321.0647
A16: Interconexión y Circuitos | B16: 567137.69 | C16: 0 | D16: 567137.69
A17: Telefonía pública y rural | B17: 158812.97 | C17: 0 | D17: 158812.97
A18: Larga distancia | B18: 65281.821 | C18: 0 | D18: 65281.821
A19: Otros | B19: 330980.001 | C19: 0 | D19: 330980.001
A20: GASTOS | B20: =SUM(B21:B27) -> -6500613.198 | C20: =SUM(C21:C27) -> -135205.8807 | D20: =SUM(D21:D27) -> -6635819.079
A21: Gastos de personal | B21: -803124.9509 | C21: -42217 | D21: =+B21+C21 -> -845341.9509 | E21: 4.1
A22: Gastos generales y administrativos | B22: -4163648.582 | C22: -91807 | D22: =+B22+C22 -> -4255455.582 | E22: 4.1
A23: Existencias | B23: -1433122.924 | C23: 0 | D23: -1433122.924
A24: Capitalización de Gastos por Construcción de Planta o Trabajo para el Inmovilizado | B24: 86818.68546 | C24: 0 | D24: 86818.68546
A25: Honorarios por transferencia de capacidad tecnica | B25: -163787.6446 | C25: 0 | D25: -163787.6446
A26: Provisión para desvalorización de activos | B26: -238395.0302 | C26: 0 | D26: -238395.0302
A27: Otros Gastos Operativos | B27: 214647.2487 | C27: -1181.88065 | D27: 213465.3681 | E27: 4.1
A28: UTILIDAD (PÉRDIDA) DE OPERACIÓN (EBITDA) | B28: =+B8+B20 -> 2721238.741 | C28: =+C8+C20 -> -135205.8807 | D28: =+D8+D20 -> 2586032.861
A29: Depreciación | B29: -1012718.363 | C29: -105746.1359 | D29: -1118464.499 | E29: 4.2
A30: Amortización | B30: -289099.8064 | C30: -37156.16957 | D30: -326255.976 | E30: 4.2
A31: UTILIDAD (PÉRDIDA) ANTES DE INTERESES E IMPUESTOS (EBIT) | B31: =SUM(B28:B30) -> 1419420.571 | C31: =SUM(C28:C30) -> -278108.1861 | D31: =SUM(D28:D30) -> 1141312.385
A32: Diferencias de Cambio Neto | B32: -4721 | C32: 0 | D32: =+B32+C32 -> -4721
A33: Gastos Financieros | B33: -156638 | C33: 743.993 | D33: =+B33+C33 -> -155894.007 | E33: 4.1
A34: Ingresos Financieros | B34: 27912 | C34: 0 | D34: 27912
A35: Participación en Resultados de Partes Relacionadas | B35: 82906 | C35: 0 | D35: 82906
A36: UTILIDAD (PÉRDIDA) ANTES DE IMPUESTOS | B36: =+SUM(B31:B35) -> 1368879.571 | C36: =+SUM(C31:C35) -> -277364.1931 | D36: =+SUM(D31:D35) -> 1091515.378
A37: Impuestos a las ganancias | B37: -457400 | C37: 71389.05897 | D37: -386010.941 | E37: 4.1
A38: UTILIDAD (PÉRDIDA) NETA | B38: =+SUM(B36:B37) -> 911479.5714 | C38: =+SUM(C36:C37) -> -205975.1341 | D38: 705504.4373
F46: =E46-D46 -> 0
